bitfinex-derivatives/quotes_SOLF0:USTF0_20250731
["timestamp","ask_amount","ask_price","bid_price","bid_amount"]
[1753981504670,3.15,178.49,178.47,3.1]
[1753981505081,3.15,178.54,178.44,9.55883553]
[1753981505379,3.15,178.52,178.45,3.1]
[1753981505580,8.7521,178.52,178.49,5.6029]
[1753981505782,3.15,178.51,178.49,8.7029]
[1753981505981,6.45883553,178.55,178.49,3.1]
[1753981506181,3.15,178.5,178.49,8.703]
[1753981506574,3.15,178.5,178.49,3.1]
[1753981507275,3.15,178.52,178.49,3.1]
[1753981507577,3.15,178.53,178.51,3.1]
[1753981507776,3.15,178.53,178.51,8.7022]
[1753981508573,3.15,178.53,178.52,5.602]
[1753981508773,195.10024258,178.56,178.53,3.1]
[1753981509073,203.85104258,178.56,178.55,3.1]
[1753981509274,3.15,178.55,178.53,3.1]
[1753981509775,195.10024258,178.56,178.54,8.7014]
[1753981510076,195.10024258,178.56,178.53,3.1]
[1753981510282,195.10024258,178.56,178.55,5.6011]
[1753981510475,3.15,178.58,178.56,3.1]
[1753981510875,3.15,178.57,178.56,3.1]
[1753981511981,3.15,178.56,178.54,9.55883553]
[1753981512281,3.15,178.56,178.55,3.1]
[1753981512479,3.15,178.58,178.5,6.45883553]
[1753981512675,3.15,178.58,178.49,3.1]
[1753981512980,5.6014,178.54,178.51,5.6022]
[1753981513182,3.15,178.53,178.51,8.7022]
[1753981514172,3.15,178.53,178.51,3.1]
[1753981514378,5.6011,178.55,178.52,5.602]
[1753981514578,3.15,178.54,178.53,3.1]
[1753981514784,8.7511,178.55,178.53,3.1]
[1753981515484,8.7511,178.55,178.53,8.7017]
[1753981515686,8.7511,178.55,178.53,3.1]
[1753981515880,3.15,178.55,178.5,6.45883553]
[1753981516077,106.08,178.59,178.56,3.1]
[1753981516291,3.15,178.58,178.57,3.1]
[1753981516584,114.83,178.59,178.55,3.1]
[1753981516785,3.15,178.61,178.56,6.45883553]
[1753981516980,3.15,178.61,178.57,3.1]
[1753981517181,3.15,178.61,178.6,3.1]
[1753981517689,109.21,178.63,178.61,3.1]
[1753981517887,3.15,178.63,178.62,3.1]
[1753981518391,3.15,178.62,178.6,3.1]
[1753981518983,3.15,178.62,178.61,3.1]
[1753981519186,376.58,178.71,178.62,3.1]
[1753981519386,3.15,178.69,178.63,6.45883553]
[1753981519582,5.5982,178.65,178.62,3.1]
[1753981519792,3.15,178.64,178.6,6.45883553]
[1753981519979,3.15,178.66,178.58,3.1]
[1753981520175,3.15,178.65,178.58,3.1]
[1753981520775,106.4,178.66,178.59,3.1]
[1753981520979,3.15,178.64,178.59,3.1]
[1753981521385,3.15,178.64,178.62,3.1]
[1753981521591,106.4,178.66,178.58,6.45883553]
[1753981521787,3.15,178.65,178.58,9.55883553]
[1753981521982,3.15,178.65,178.58,3.1]
[1753981522381,3.15,178.64,178.56,3.1]
[1753981522685,3.15,178.6,178.56,6.45883553]
[1753981522987,3.15,178.61,178.57,3.1]
[1753981523184,3.15,178.61,178.59,3.1]
[1753981524784,5.5987,178.63,178.6,3.1]
[1753981524981,3.15,178.62,178.6,3.1]
[1753981525878,3.15,178.62,178.61,3.1]
[1753981526078,3.15,178.63,178.62,3.1]
[1753981526487,3.15,178.62,178.6,3.1]
[1753981527184,3.15,178.66,178.56,6.45883553]
[1753981527385,5.5993,178.61,178.58,5.6]
[1753981527780,3.15,178.64,178.57,3.1]
[1753981527977,3.15,178.62,178.6,8.6995]
[1753981528889,106.26,178.66,178.58,3.01]
[1753981529188,3.25,178.6,178.58,3.01]
[1753981529388,3.25,178.6,178.58,8.6099]
[1753981529589,3.25,178.6,178.58,3.01]
[1753981530293,3.25,178.6,178.59,3.01]
[1753981530593,9.70883553,178.65,178.57,3.01]
[1753981530787,3.95442441,178.59,178.49,3.95442441]
[1753981530984,3.95442441,178.55,178.47,3.95442441]
[1753981531185,3.25,178.54,178.47,3.95442441]
[1753981531381,3.25,178.54,178.48,3.01]
[1753981531787,3.25,178.54,178.49,3.95442441]
[1753981531982,3.25,178.56,178.54,3.01]
[1753981532387,5.6008,178.56,178.54,3.01]
[1753981532591,3.25,178.54,178.53,5.6015]
[1753981533190,3.95442441,178.57,178.49,3.01]
[1753981533494,3.25,178.56,178.49,3.01]
[1753981533694,3.25,178.53,178.52,5.602]
[1753981534583,3.25,178.53,178.52,8.612]
[1753981534988,3.25,178.53,178.52,5.602]
[1753981536398,3.25,178.57,178.48,9.4557574]
[1753981536697,5.6016,178.54,178.51,5.6023]
[1753981536897,3.25,178.57,178.51,5.6023]
[1753981537295,3.25,178.54,178.49,3.01]
[1753981537496,3.25,178.52,178.5,3.01]
[1753981538294,5.6011,178.55,178.47,6.4457574]
[1753981538497,3.25,178.54,178.48,3.01]
[1753981538698,6.4457574,178.52,178.45,3.01]
[1753981538899,3.25,178.48,178.44,3.01]
[1753981539493,8.8535,178.48,178.44,8.6143]
[1753981539697,6.4457574,178.5,178.43,134.37565502]
[1753981539899,3.25,178.45,178.43,3.01]
[1753981540098,3.25,178.45,178.44,5.6045]
[1753981540302,6.4457574,178.5,178.4,6.4457574]
[1753981540504,3.25,178.49,178.4,3.01]
[1753981540800,3.25,178.46,178.43,3.01]
[1753981541301,5.6037,178.47,178.41,6.4457574]
[1753981541302,3.25,178.47,178.41,6.4457574]
[1753981541501,3.25,178.47,178.46,3.01]
[1753981541702,3.25,178.47,178.43,6.4457574]
[1753981541997,6.4457574,178.51,178.42,3.01]
[1753981542204,3.25,178.5,178.42,3.01]
[1753981542400,6.4457574,178.53,178.43,6.4457574]
[1753981542598,3.25,178.52,178.45,6.4457574]
[1753981542903,3.25,178.52,178.46,8.6137]
[1753981543103,3.25,178.52,178.46,9.4557574]
[1753981543301,3.25,178.52,178.46,3.01]
[1753981543491,3.25,178.52,178.46,8.6138]
[1753981543691,106.0,178.54,178.47,3.01]
[1753981543891,109.25,178.54,178.47,3.01]
[1753981544101,109.25,178.54,178.49,3.01]
[1753981544291,3.25,178.52,178.5,3.01]
[1753981544490,3.25,178.52,178.51,8.6124]
[1753981544699,3.25,178.52,178.51,3.01]
[1753981544898,3.25,178.53,178.49,3.01]
[1753981545101,3.25,178.52,178.5,3.01]
[1753981545312,3.25,178.52,178.5,8.6124]
[1753981545596,3.25,178.52,178.5,3.01]
[1753981545795,3.25,178.53,178.51,8.6121]
[1753981545993,106.0,178.54,178.51,3.01]
[1753981546289,3.25,178.52,178.48,6.4457574]
[1753981546494,3.25,178.53,178.5,8.6126]
[1753981546698,3.25,178.52,178.5,8.6126]
[1753981546893,106.0,178.54,178.51,3.01]
[1753981547093,114.8515,178.54,178.52,3.01]
[1753981547300,3.25,178.53,178.5,6.4457574]
[1753981547699,376.5,178.58,178.53,3.01]
[1753981547896,105.9,178.59,178.56,3.01]
[1753981548204,109.15,178.59,178.57,3.01]
[1753981549395,3.25,178.59,178.58,3.01]
[1753981549798,3.25,178.59,178.56,15.0564574]
[1753981550104,3.25,178.58,178.56,15.0564574]
[1753981550308,3.25,178.58,178.57,5.6005]
[1753981550601,3.25,178.59,178.57,8.6105]
[1753981551299,3.25,178.63,178.59,8.6098]
[1753981551494,105.9,178.64,178.6,3.01]
[1753981551697,3.25,178.61,178.6,3.01]
[1753981551903,3.25,178.61,178.6,8.6095]
[1753981552099,105.9,178.64,178.6,8.6095]
[1753981552502,3.25,178.62,178.61,3.01]
[1753981552694,109.15,178.64,178.62,3.01]
[1753981552900,109.15,178.64,178.63,3.01]
[1753981553106,3.25,178.64,178.63,3.01]
[1753981553304,3.25,178.64,178.63,8.6086]
[1753981553503,3.25,178.66,178.63,3.01]
[1753981553698,3.25,178.65,178.64,3.01]
[1753981553904,3.25,178.67,178.62,9.4557574]
[1753981554104,4.04900831,178.66,178.59,3.01]
[1753981554302,3.25,178.65,178.57,3.01]
[1753981554502,3.25,178.65,178.58,5.6]
[1753981554904,3.25,178.65,178.58,3.01]
[1753981556305,3.25,178.65,178.58,9.4557574]
[1753981556505,3.25,178.65,178.59,3.01]
[1753981556705,3.25,178.65,178.6,6.4457574]
[1753981557001,3.25,178.65,178.61,3.01]
[1753981557205,3.25,178.64,178.63,3.01]
[1753981557404,3.25,178.64,178.6,6.4457574]
[1753981557602,3.25,178.64,178.62,3.01]
[1753981557797,3.25,178.64,178.6,6.4457574]
[1753981558000,3.25,178.66,178.64,3.01]
[1753981558296,5.5978,178.66,178.64,3.08]
[1753981558499,108.86,178.68,178.63,3.08]
[1753981558697,108.86,178.68,178.64,6.4457574]
[1753981558908,3.18,178.68,178.67,3.08]
[1753981559106,106.02,178.72,178.67,3.08]
[1753981559407,3.18,178.69,178.67,3.08]
[1753981559608,5.5962,178.71,178.68,3.08]
[1753981559799,3.18,178.69,178.67,8.6771]
[1753981560001,106.02,178.72,178.68,3.08]
[1753981560204,3.18,178.71,178.62,9.5257574]
[1753981560405,3.18,178.69,178.6,6.4457574]
[1753981560710,3.18,178.65,178.57,3.08]
[1753981561106,106.04,178.66,178.58,6.4457574]
[1753981561407,3.18,178.64,178.59,3.08]
[1753981561711,106.04,178.66,178.6,3.08]
[1753981561712,3.18,178.62,178.6,3.08]
[1753981562112,106.04,178.66,178.6,3.08]
[1753981562411,3.18,178.61,178.58,3.08]
[1753981562615,3.18,178.61,178.56,6.4457574]
[1753981563010,3.18,178.61,178.59,3.08]
[1753981563807,3.18,178.63,178.56,6.4457574]
[1753981564115,106.04,178.66,178.59,3.08]
[1753981564308,3.18,178.65,178.59,3.08]
[1753981564510,3.18,178.65,178.6,8.6794]
[1753981565008,3.18,178.61,178.58,3.08]
[1753981565403,3.18,178.61,178.56,6.4457574]
[1753981565608,3.18,178.61,178.57,3.08]
[1753981566315,3.18,178.63,178.61,3.08]
[1753981566705,3.18,178.62,178.6,5.5994]
[1753981566910,3.18,178.62,178.6,8.6794]
[1753981567415,3.18,178.65,178.61,3.08]
[1753981567610,3.18,178.64,178.62,3.08]
[1753981568309,3.18,178.65,178.58,6.4457574]
[1753981568504,3.18,178.65,178.59,3.08]
[1753981568711,3.18,178.65,178.57,3.08]
[1753981568904,3.18,178.62,178.56,9.5257574]
[1753981569105,3.18,178.62,178.56,3.08]
[1753981569408,3.18,178.62,178.48,65.56116258]
[1753981569608,3.18,178.61,178.51,9.5257574]
[1753981569809,5.6013,178.55,178.51,3.08]
[1753981570010,3.18,178.53,178.51,3.08]
[1753981570216,3.18,178.55,178.52,3.08]
[1753981570519,3.18,178.54,178.52,8.6819]
[1753981570817,3.18,178.54,178.52,3.08]
[1753981571419,3.18,178.55,178.48,3.08]
[1753981572316,5.602,178.53,178.49,5.6027]
[1753981572520,3.18,178.55,178.49,6.4457574]
[1753981572818,3.18,178.54,178.51,3.08]
[1753981573011,3.18,178.56,178.5,3.08]
[1753981573609,5.6014,178.54,178.51,5.6021]
[1753981573912,3.18,178.55,178.49,6.4457574]
[1753981574109,4.69145434,178.63,178.43,376.58]
[1753981574110,106.06,178.62,178.54,8.6812]
[1753981574309,3.18,178.6,178.54,3.08]
[1753981574517,3.18,178.64,178.57,9.5257574]
[1753981574715,3.18,178.61,178.57,6.4457574]
[1753981575015,3.18,178.61,178.59,3.08]
[1753981576114,3.18,178.61,178.58,5.6]
[1753981576320,3.18,178.61,178.59,3.08]
[1753981576820,3.18,178.62,178.6,3.08]
[1753981577223,8.7784,178.64,178.61,3.08]
[1753981577415,482.46,178.65,178.59,6.4457574]
[1753981577718,106.08,178.65,178.63,3.08]
[1753981577923,109.26,178.65,178.63,3.08]
[1753981578623,3.18,178.67,178.62,3.08]
[1753981578811,3.18,178.67,178.65,3.08]
[1753981579013,105.96,178.7,178.64,8.6782]
[1753981579215,3.18,178.69,178.63,6.4457574]
[1753981579522,5.598,178.65,178.62,8.6789]
[1753981579730,3.18,178.68,178.58,3.08]
[1753981579921,6.4457574,178.67,178.58,3.08]
[1753981580116,5.5987,178.63,178.58,3.08]
[1753981580321,3.18,178.66,178.58,3.08]
[1753981580722,6.4457574,178.65,178.58,3.08]
[1753981580913,15.88415434,178.71,178.55,3.08]
[1753981580914,3.18,178.62,178.55,3.08]
[1753981581924,5.5998,178.6,178.56,5.6006]
[1753981582224,3.18,178.59,178.54,3.08]
[1753981582422,3.18,178.59,178.57,5.6003]
[1753981582722,3.18,178.59,178.57,8.6803]
[1753981583022,3.18,178.61,178.59,3.08]
[1753981583218,5.599,178.62,178.57,6.4457574]
[1753981583418,109.14,178.64,178.61,3.08]
[1753981583618,3.18,178.62,178.59,3.08]
[1753981583814,105.96,178.64,178.59,3.08]
[1753981583815,3.18,178.61,178.59,3.08]
[1753981584018,3.18,178.61,178.59,8.6797]
[1753981584426,3.18,178.61,178.59,3.08]
[1753981584618,3.18,178.6,178.56,6.4457574]
[1753981584813,3.18,178.6,178.58,3.08]
[1753981585518,8.7791,178.62,178.59,3.08]
[1753981585719,105.96,178.64,178.57,3.08]
[1753981585918,5.5989,178.63,178.59,8.6798]
[1753981586124,3.18,178.62,178.6,3.08]
[1753981586324,105.96,178.64,178.58,9.5257574]
[1753981586517,3.18,178.63,178.58,15.1258574]
[1753981586720,105.96,178.64,178.59,3.08]
[1753981586923,8.7787,178.63,178.59,5.5996]
[1753981587124,3.18,178.63,178.61,3.08]
[1753981587427,3.18,178.63,178.6,5.5994]
[1753981587626,3.18,178.63,178.61,3.08]
[1753981588023,3.18,178.62,178.61,3.08]
[1753981589431,8.7789,178.62,178.6,5.5994]
[1753981589731,3.2,178.6,178.59,5.5998]
[1753981590025,3.2,178.6,178.58,5.6001]
[1753981590226,3.2,178.6,178.58,8.6301]
[1753981590625,105.96,178.64,178.57,5.6004]
[1753981590924,3.2,178.58,178.57,8.6304]
[1753981591226,3.2,178.58,178.54,6.4457574]
[1753981591227,3.2,178.58,178.56,8.6306]
[1753981591736,3.2,178.6,178.58,8.6299]
[1753981592023,3.2,178.6,178.58,3.03]
[1753981592428,3.2,178.6,178.58,8.6299]
[1753981592624,3.2,178.63,178.59,3.03]
[1753981592829,8.7991,178.62,178.6,3.03]
[1753981593222,3.2,178.62,178.6,3.03]
[1753981593420,8.7992,178.61,178.6,3.03]
[1753981594331,5.5996,178.6,178.58,3.03]
[1753981594526,3.2,178.59,178.58,3.03]
[1753981596232,3.2,178.59,178.58,8.6302]
[1753981596424,105.96,178.64,178.56,3.03]
[1753981596624,4.0420579,178.63,178.56,3.03]
[1753981596831,3.2,178.61,178.56,3.03]
[1753981597025,5.5998,178.6,178.57,3.03]
[1753981597231,3.2,178.62,178.56,3.03]
[1753981597627,3.2,178.62,178.57,5.6003]
[1753981597835,3.2,178.62,178.57,8.6303]
[1753981598236,5.5998,178.6,178.57,8.6303]
[1753981598429,3.2,178.59,178.57,8.6303]
[1753981598829,3.2,178.63,178.56,5.6007]
[1753981599135,3.2,178.61,178.55,6.98232322]
[1753981599330,5.5997,178.6,178.57,5.6002]
[1753981599530,8.7997,178.6,178.58,3.03]
[1753981599731,3.2,178.63,178.56,3.03]
[1753981599926,3.2,178.61,178.56,3.03]
[1753981600127,3.2,178.61,178.55,6.98232322]
[1753981600626,3.95232322,178.62,178.57,5.6004]
[1753981600825,3.2,178.6,178.57,3.95232322]
[1753981601031,105.58,178.65,178.59,3.03]
[1753981601231,5.5994,178.61,178.59,3.03]
[1753981601426,4.04186453,178.64,178.59,3.03]
[1753981601427,3.2,178.62,178.59,3.03]
[1753981601634,3.2,178.62,178.57,3.95232322]
[1753981601635,3.2,178.62,178.6,3.03]
[1753981601835,8.7984,178.64,178.61,5.5989]
[1753981602037,8.7984,178.64,178.62,3.03]
[1753981602337,3.2,178.63,178.62,3.03]
[1753981602726,5.5971,178.68,178.63,3.03]
[1753981602931,3.2,178.66,178.65,3.03]
[1753981603132,3.2,178.68,178.66,3.03]
[1753981603327,3.2,178.68,178.66,12.57982322]
[1753981603636,194.13713418,178.69,178.68,3.03]
[1753981603837,198.17715453,178.69,178.68,6.98232322]
[1753981604135,3.2,178.68,178.6,6.98232322]
[1753981604333,3.2,178.66,178.6,8.6293]
[1753981605234,5.5988,178.63,178.6,8.6293]
[1753981605534,3.2,178.63,178.55,3.03]
[1753981605938,5.5997,178.6,178.57,5.6004]
[1753981606128,3.2,178.59,178.57,5.6004]
[1753981606540,3.2,178.58,178.56,5.6007]
[1753981606738,3.2,178.57,178.56,8.6307]
[1753981607035,4.69145434,178.66,178.56,8.6307]
[1753981607036,8.7986,178.63,178.56,3.03]
[1753981607235,3.2,178.63,178.57,6.43880173]
[1753981607439,105.66,178.66,178.59,3.03]
[1753981607634,5.5991,178.62,178.59,5.5998]
[1753981607840,3.2,178.61,178.59,5.5998]
[1753981608033,112.09880173,178.66,178.56,3.03]
[1753981608236,8.799,178.62,178.59,5.5996]
[1753981608435,3.2,178.61,178.59,8.6296]
[1753981608638,3.2,178.61,178.59,3.03]
[1753981609540,3.2,178.61,178.59,8.6297]
[1753981609733,3.2,178.61,178.55,6.43880173]
[1753981609940,3.2,178.63,178.58,6.43880173]
[1753981610140,3.2,178.65,178.59,3.03]
[1753981610737,3.2,178.65,178.61,3.03]
[1753981611040,3.2,178.67,178.61,3.03]
[1753981611237,3.2,178.65,178.61,3.03]
[1753981611638,3.2,178.68,178.63,3.03]
[1753981611941,3.2,178.68,178.62,6.43880173]
[1753981611942,3.2,178.68,178.65,3.03]
[1753981612341,3.2,178.68,178.67,5.5973]
[1753981612540,194.13713418,178.69,178.66,6.43880173]
[1753981612738,0.97421685,178.76,178.67,3.03]
[1753981612739,105.56,178.74,178.67,3.03]
[1753981612936,12.83420729,178.73,178.7,5.5963]
[1753981613143,7.23850729,178.72,178.7,8.6263]
[1753981613345,3.2,178.72,178.7,8.6263]
[1753981613738,3.2,178.71,178.7,8.6263]
[1753981614046,3.2,178.71,178.7,5.5963]
[1753981614942,8.7957,178.73,178.7,8.6263]
[1753981615141,3.2,178.72,178.7,8.6263]
[1753981615347,111.1552,178.74,178.71,5.5961]
[1753981615547,3.2,178.73,178.71,8.6261]
[1753981616043,3.2,178.73,178.72,5.5958]
[1753981616439,3.2,178.73,178.72,8.6258]
[1753981617149,105.56,178.74,178.73,5.5955]
[1753981617352,105.56,178.74,178.73,8.6255]
[1753981617652,3.2,178.76,178.74,5.5951]
[1753981617850,3.2,178.75,178.74,5.5951]
[1753981618146,3.2,178.75,178.73,3.03]
[1753981618550,3.2,178.75,178.7,6.43880173]
[1753981618748,3.2,178.75,178.74,3.17]
[1753981619246,3.08,178.77,178.75,3.17]
[1753981620146,3.08,178.77,178.76,9.60880173]
[1753981620355,105.28,178.82,178.76,9.60880173]
[1753981620551,5.5944,178.77,178.74,12.03390173]
[1753981620746,3.08,178.76,178.74,15.20390173]
[1753981621143,3.08,178.81,178.72,9.60880173]
[1753981621450,3.08,178.79,178.72,9.60880173]
[1753981621652,3.08,178.76,178.73,5.5952]
[1753981621849,3.08,178.76,178.72,6.43880173]
[1753981621850,3.08,178.76,178.74,3.17]
[1753981622050,3.08,178.78,178.72,6.43880173]
[1753981622352,3.08,178.81,178.73,3.17]
[1753981623854,3.08,178.79,178.71,3.17]
[1753981624255,6.43880173,178.78,178.71,3.17]
[1753981624455,3.08,178.77,178.69,3.17]
[1753981624652,5.595,178.75,178.69,3.17]
[1753981624954,3.08,178.76,178.69,3.17]
[1753981625457,5.5954,178.74,178.72,5.5957]
[1753981625654,3.08,178.75,178.73,3.17]
[1753981625855,3.08,178.74,178.73,3.17]
[1753981626155,8.6755,178.73,178.71,3.17]
[1753981626355,3.08,178.73,178.69,3.17]
[1753981626555,5.5953,178.74,178.69,3.17]
[1753981626855,3.08,178.76,178.69,3.17]
[1753981627050,8.6752,178.74,178.72,3.17]
[1753981627256,3.08,178.73,178.72,3.17]
[1753981627853,8.675,178.75,178.69,3.17]
[1753981628050,3.08,178.75,178.66,3.17]
[1753981628252,3.08,178.75,178.73,5.5952]
[1753981628556,3.08,178.75,178.74,3.17]
[1753981628758,5.5948,178.75,178.72,9.54051789]
[1753981628952,3.94501789,178.76,178.7,3.17]
[1753981629153,3.94501789,178.72,178.67,3.17]
[1753981629358,3.08,178.71,178.67,3.17]
[1753981629661,3.08,178.7,178.67,3.17]
[1753981629960,3.08,178.69,178.67,3.17]
[1753981630260,3.94501789,178.72,178.68,3.17]
[1753981630462,3.08,178.69,178.68,3.17]
[1753981630860,3.94501789,178.72,178.57,160.3007]
[1753981630861,3.08,178.71,178.62,3.17]
[1753981631064,3.08,178.68,178.59,3.17]
[1753981631258,3.08,178.68,178.61,3.17]
[1753981631459,3.08,178.67,178.65,5.5979]
[1753981631661,3.08,178.67,178.65,8.7679]
[1753981632160,3.08,178.67,178.66,5.5977]
[1753981632464,3.08,178.72,178.66,3.17]
[1753981632859,5.5967,178.69,178.66,8.7674]
[1753981633064,3.08,178.68,178.66,8.7674]
[1753981633264,6.43393449,178.73,178.66,3.17]
[1753981633462,3.08,178.72,178.66,3.17]
[1753981633663,3.08,178.69,178.67,3.17]
[1753981633867,3.08,178.69,178.68,3.17]
[1753981634265,3.08,178.72,178.66,6.43393449]
[1753981634469,3.08,178.72,178.67,3.17]
[1753981634666,11.1878,178.79,178.6,11.1988]
[1753981634667,3.08,178.75,178.74,5.5951]
[1753981634857,3.08,178.75,178.74,8.7651]
[1753981635064,3.08,178.76,178.74,3.17]
[1753981635259,3.08,178.76,178.75,3.17]
[1753981635468,3.08,178.81,178.74,6.43393449]
[1753981635665,5.5935,178.8,178.77,5.594]
[1753981635865,3.08,178.81,178.75,3.17]
[1753981636273,5.5937,178.79,178.76,5.5945]
[1753981636571,3.08,178.81,178.75,3.17]
[1753981637080,3.08,178.81,178.74,6.43393449]
[1753981637466,5.5946,178.76,178.73,3.17]
[1753981637673,3.08,178.75,178.73,3.17]
[1753981638074,3.08,178.73,178.68,6.43393449]
[1753981638379,3.08,178.75,178.67,3.17]
[1753981638772,8.6759,178.72,178.69,8.7665]
[1753981639178,3.08,178.75,178.66,3.17]
[1753981639474,6.43393449,178.73,178.63,376.2]
[1753981639680,3.08,178.72,178.64,3.17]
[1753981640177,5.5966,178.7,178.66,5.5976]
[1753981640380,3.08,178.72,178.63,3.17]
[1753981640876,3.08,178.69,178.61,3.17]
[1753981641376,3.08,178.69,178.59,6.43393449]
[1753981641377,3.08,178.65,178.62,8.7689]
[1753981641579,6.43393449,178.7,178.6,3.17]
[1753981641781,3.08,178.69,178.63,3.17]
[1753981642182,3.08,178.65,178.6,6.43393449]
[1753981642375,3.08,178.71,178.62,6.43393449]
[1753981642573,3.08,178.71,178.63,3.17]
[1753981642778,8.6778,178.66,178.63,3.17]
[1753981643075,8.6778,178.66,178.64,3.17]
[1753981643379,3.08,178.66,178.64,3.17]
[1753981644081,3.08,178.65,178.64,3.17]
[1753981644474,8.6774,178.67,178.64,3.17]
[1753981644788,3.08,178.67,178.65,3.17]
[1753981645280,3.08,178.66,178.63,8.7684]
[1753981645674,3.08,178.66,178.63,5.5984]
[1753981645874,3.08,178.66,178.63,8.7684]
[1753981646273,3.08,178.65,178.63,8.7684]
[1753981646676,3.08,178.64,178.62,8.7688]
[1753981646882,3.08,178.62,178.6,3.17]
[1753981647078,3.08,178.67,178.6,3.17]
[1753981647278,3.08,178.64,178.62,3.17]
[1753981647482,3.08,178.69,178.6,3.17]
[1753981647677,3.08,178.69,178.61,6.43393449]
[1753981647881,3.08,178.69,178.62,3.17]
[1753981648375,5.5981,178.65,178.62,3.17]
[1753981648572,4.69145434,178.73,178.62,3.17]
[1753981648573,3.25,178.64,178.62,3.17]
[1753981648776,3.25,178.64,178.63,3.03]
[1753981649173,3.25,178.64,178.63,8.6286]
[1753981649473,6.43393449,178.72,178.61,6.43393449]
[1753981649679,3.25,178.71,178.64,3.03]
[1753981649876,3.25,178.71,178.62,3.03]
[1753981650384,3.25,178.71,178.63,5.5984]
[1753981650987,5.5975,178.67,178.63,5.5984]
[1753981651280,3.25,178.65,178.63,3.03]
[1753981651485,3.25,178.69,178.59,3.03]
[1753981651680,3.25,178.67,178.61,5.599]
[1753981651880,3.25,178.67,178.59,3.03]
[1753981652081,5.5981,178.65,178.59,3.03]
[1753981652277,3.25,178.64,178.62,3.03]
[1753981652485,3.25,178.63,178.6,3.03]
[1753981652687,3.25,178.67,178.6,3.03]
[1753981652879,3.25,178.67,178.58,3.03]
[1753981653075,3.25,178.67,178.58,9.46393449]
[1753981653280,3.25,178.67,178.58,3.03]
[1753981653580,3.25,178.67,178.58,8.63]
[1753981653983,3.25,178.67,178.59,5.5998]
[1753981654376,3.25,178.65,178.58,3.03]
[1753981654684,3.25,178.63,178.56,5.6007]
[1753981654984,3.25,178.59,178.56,8.6307]
[1753981655186,6.43393449,178.58,178.51,3.03]
[1753981655384,3.25,178.57,178.51,3.03]
[1753981655685,3.25,178.57,178.5,3.03]
[1753981656081,8.8505,178.57,178.5,3.03]